Workbook

Sheet Sheet1
A2: Annexure A
A4: The Insured: Competition Tribunal
A5: The Business: Competition Adjucative Body
A6: Risk Address: DTIC Campus, Block C, First Floor, Sunnyside Pretoria
A7: Renewal Date: April 23
A8: VAT: NB. All insurances must include VAT, and all premiums indicated are VAT inclusive
H9: Renasa
A10: Policy Outline | C10: Sum Insured | D10: Rate p/a | E10: Cost p.a. | F10: Rate p/a | G10: Rate p/a | H10: Cost p.a.
A11: Policy type: Office Contents
A12: Perils: fire, lightning, explosion, earthquake, malicious damage, storm, flood, water, impact from | H12: All theft cover subject
A13: vehicles aircraft aerial devices trees animals aerials satellite dishes, and theft when following | H13: to dti Campus having
A14: breaking in (including at Metrofile premises or any other paper bank storage facility) | H14: 24 hour security
A15: Contents excl. computers: perils except theft | C15: R 1,336,274 | F15: 0.200% | G15: 0.175% | H15: =SUM(C15*G15) -> R 2,338.48
A16: 10% Escalation | C16: =SUM(C15)*10% -> R 133,627 | F16: 0.100% | G16: =SUM(G15)*5-0% -> 0.87500% | H16: =SUM(C16*G16) -> R 1,169.24
A17: Policy type: Combined
A18: Theft limit | C18: R 100,000 | F18: 2.000% | G18: 2.000% | H18: =SUM(C18*G18) -> R 2,000.00
A19: 10% Escalation | C19: =SUM(C18)*10% -> R 10,000 | F19: 1.000% | G19: 1.000% | H19: =SUM(C19*G19) -> R 100.00
A20: Warranted that there is 24 hour security at the dti campus.
A21: Documents cover including reinstatement costs | C21: R 140,000 | F21: 0.200% | G21: Included
A22: Liability for documents damaged/lost while in your custody | C22: R 240,000 | F22: 0.200% | G22: Included
A23: Claims Preparation Costs | C23: R 60,000 | F23: 0.000% | G23: Included
A24: Excess | H24: Excess: R1,000
A25: Policy type: Electronic Equipment
A26: Accidental loss or damage (theft limited to when accompanied by forced entry)to:
A27: Computers, software, pabx, fax, configuration costs but excluding laptops and other portable | C27: R 1,200,000 | F27: 1.000% | G27: 0.450% | H27: =SUM(C27*G27) -> R 5,400.00
A28: type equipment (Average Condition applies)(Indemnity new for old if not more than 7 years old)
A29: Laptops (includes full theft cover and worldwide):
A30: Increased cost of working | C30: Not insured | H30: Excesses:
A31: All theft cover subject to dti Campus having 24 hour security | H31: Basic 10% min R500
A32: Excess | H32: Portables 10% min R1,000
A33: Other | H33: Above max. To R10,000 /claim
A34: Portables | H34: Hold up add 10% min R1,000
A35: Policy type: Business Interruption (office contents perils other than theft)
A36: Indemnity period 12 months
A37: Following the occurrence of any of perils: fire, lightning, explosion, earthquake, malicious damage,
A38: storm, flood, water, impact from vehicles aircraft aerial devices trees animals aerials satellite
A39: dishes | C39: Sum unaltered
A40: Gross profit / revenue | C40: Not insured
A41: (Average Condition applies)
A42: Additional Increase in Cost of Working | C42: R 2,000,000 | F42: 0.150% | G42: 0.125% | H42: =SUM(C42*G42) -> R 2,500.00
A43: Claims preparation costs | C43: See Fire
A44: Exess | C44: See Fire | H44: Excess: Nil
A45: Policy type: Business All Risks
A46: Accidental loss or damage anywhere in the world:-
A47: 8 x Surveillance cameras (in equal proportions) | C47: R 29,440 | G47: 3.000% | H47: =SUM(C47*G47) -> R 883.20
A48: Indemnity is new replacement value where a total loss | H48: Excess: Lightning/power surge
A49: Exess | H49: 10% min R500
A50: Policy type: Glass Breakage
A51: Accidental breakage to all internal or external glass, including frames, signwriting, shop displays | C51: R 32,750 | F51: 4.0% | G51: 4.0% | H51: =SUM(C51*G51) -> R 1,310.00
A52: when caused by glass breakage | H52: Excess: 10% min R500
A53: Excess
A54: Policy type: Combined Liability
A55: Retroactive date 26.11.1999. Claims made wording. It is important that any incident which could
A56: give rise to a claim is reported immediately. | H56: Excess: R1,000
A57: Occupier's, tenant's, & work away incl Food & Drink | C57: R 50,000 | F57: R 450.00 | G57: R 350.00 | H57: =SUM(G57) -> R 350.00
A58: Extended Liability (adds this limit to any other wne at least R1,000,000) | C58: R 20,000,000 | F58: R 900.00 | G58: R 1,200.00 | H58: =SUM(G58) -> R 1,200.00
A59: Goods supplied liability (products) | C59: Not Insured
A60: Defective workmanship liability | C60: Not Insured
A61: Legal defence costs | C61: R 100,000 | F61: R 0.00 | G61: Included
A62: Wrongful arrest | C62: R 100,000 | F62: R 0.00 | G62: Included
A63: Excess
A64: Policy type: Employer's Liability
A65: Retroactive date 26.11.1999. Claims made wording. It is important that any incident which could
A66: give rise to a claim is reported immediately. | H66: Excess: R500
A67: Limit of Indemnity | C67: R 1,000,000 | F67: R 250.00 | G67: R 150.00 | H67: =SUM(G67) -> R 150.00
A68: Excess
A69: Policy type: Motor
A70: 2021 Suzuki Ciaz 1.5 GL MT Comprehensive | C70: R 235,448
A72: Third party liability limits: | H72: Basic - 5% of claim min
A73: Generally | C73: R 2,500,000 | F73: Included | G73: Included | H73: R2,500 Theft/Hijacking - Nil
A74: Passenger liability cars | C74: R 2,500,000 | F74: Included | G74: Included | H74: Extras for drivers under 25 or
A75: Passenger liability - goods vehicles (cab section only) | C75: Not Insured | H75: with full licence under 2 yrs
A77: Loss of keys/replacement of locks (special excess of 10%/R100) | C77: R 2,000
A78: Wreckage removal | C78: R 5,000
A79: Car hire following theft, hijacking, or total loss is included - upt o R230 per day.
A80: Window glass claims - special excess of 25% min R500 applied
A81: Contingent liability - non owned vehicles on company business | C81: R 2,500,000 | F81: R 0.00 | G81: Included
A82: Excesses:
A83: Basic
A84: Theft/Hijacking
A85: Extras for drivers under 25 or with full licence under 2yrs
A86: Policy type: SASRIA Riot Strike Terrorism
A87: Office Contents | C87: R 2,000,000 | F87: 0.0144% | G87: 0.0145% | H87: =SUM(C87*G87) -> R 290.00
A88: 10% Escalation | C88: =SUM(C16) -> R 133,627 | F88: =SUM(F87)*50% -> 0.0072% | G88: =SUM(G87)*50% -> 0.0073% | H88: =SUM(C88*G88) -> R 9.69
A89: Business All Risks | C89: =SUM(C47) -> R 29,440 | G89: 0.0145% | H89: =SUM(#REF!*G89) -> 
A90: Electronic Equipment | C90: =SUM(C27:C29) -> R 1,200,000 | F90: 0.0144% | G90: 0.0145% | H90: =SUM(C90*G90) -> R 174.00
A91: Glass | C91: =SUM(C51) -> R 32,750 | F91: 0.0144% | G91: 0.0145% | H91: =SUM(C91*G91) -> R 4.75
A92: Motor
A93: Others | F93: R 45.00 | G93: R 45.39 | H93: =SUM(C93*G93) -> R 0.00
A94: Total cost general insurances | H94: =SUM(H15:H93) -> 
A95: Policy type: Business Crime
A96: All employees and part time judges - total 30 persons at renewal 2020 | C96: Main limit is per loss but aggregate is twice main limit.
A97: Employee direct theft of assets of the Tribunal
A98: Employee direct fraud or dishonesty with an intent to cause loss to the Tribunal | C98: R 3,000,000 | H98: R 23,696.27
A99: Computer fraud by third parties
A100: Claims preparation costs | C100: R 300,000 | H100: Included in above
A101: Cost of recovery | C101: R 300,000 | H101: Included in above
A102: Expenses incurred in reinstating records | C102: R 300,000 | H102: Included in above
A103: Fraudulent transfer instructions | C103: Included | H103: Included in above
A104: Extortion risk | C104: Included | H104: Included in above
A105: Excess
A106: Total cost business crime insurance | H106: =H98 -> R 23,696.27
